fUSD/lending_fUSD_20250107
["ID","MTS","AMOUNT","RATE_DAILY","PERIOD"]
[348050855,1736283034808,-500.0,9.794e-05,2]
[348050856,1736283034818,-500.0,9.794e-05,2]
[348050857,1736283034828,-500.0,9.794e-05,2]
[348050858,1736283034839,-450.66,9.794e-05,2]
[348050859,1736283034859,-500.0,9.794e-05,2]
[348050860,1736283034869,-3329.62,9.794e-05,2]
[348050861,1736283034878,-1494.64,9.794e-05,2]
[348050862,1736283034888,-1494.64,9.794e-05,2]
[348050863,1736283034899,-500.0,9.794e-05,2]
[348050864,1736283034909,-500.0,9.794e-05,2]
[348050865,1736283034918,-6317.69,9.794e-05,2]
[348050866,1736283034929,-500.0,9.794e-05,2]
[348050867,1736283034939,-500.0,9.794e-05,2]
[348050868,1736283034949,-500.0,9.794e-05,2]
[348050869,1736283034959,-680.41,9.794e-05,2]
[348050870,1736283034969,-500.0,9.794e-05,2]
[348050871,1736283034980,-988.42,9.794e-05,2]
[348050872,1736283034989,-500.0,9.794e-05,2]
[348050873,1736283034998,-588.55853965,9.794e-05,2]
[348050874,1736283035008,-602.74257638,9.794e-05,2]
[348050875,1736283035019,-500.0,9.794e-05,2]
[348050876,1736283035029,-1000.41,9.794e-05,2]
[348050877,1736283035039,-500.0,9.794e-05,2]
[348050878,1736283035048,-500.0,9.794e-05,2]
[348050879,1736283035058,-528.68,9.794e-05,2]
[348050880,1736283035068,-1203.96,9.794e-05,2]
[348050881,1736283035077,-500.0,9.794e-05,2]
[348050882,1736283035086,-500.0,9.794e-05,2]
[348050883,1736283035096,-606.66875636,9.794e-05,2]
[348050884,1736283035106,-500.0,9.794e-05,2]
[348050885,1736283035117,-500.0,9.794e-05,2]
[348050886,1736283035126,-1374.4,9.794e-05,2]
[348050887,1736283035135,-500.0,9.794e-05,2]
[348050888,1736283035144,-500.0,9.794e-05,2]
[348050889,1736283035154,-1510.62,9.794e-05,2]
[348050890,1736283035164,-194.71413545,9.794e-05,2]
[348050891,1736283035173,-500.0,9.794e-05,2]
[348050892,1736283035183,-500.0,9.794e-05,2]
[348050893,1736283035192,-500.0,9.794e-05,2]
[348050894,1736283035203,-500.0,9.794e-05,2]
[348050895,1736283035213,-500.0,9.794e-05,2]
[348050896,1736283035228,-500.0,9.794e-05,2]
[348050897,1736283035239,-500.0,9.794e-05,2]
[348050898,1736283035249,-2495.77,9.794e-05,2]
[348050899,1736283035260,-500.0,9.794e-05,2]
[348050900,1736283035269,-1040.34,9.794e-05,2]
[348050901,1736283035279,-2069.96,9.794e-05,2]
[348050902,1736283035290,-611.57,9.794e-05,2]
[348050903,1736283035453,-500.0,9.794e-05,2]
[348050904,1736283035463,-594.23,9.794e-05,2]
[348050905,1736283035473,-500.0,9.794e-05,2]
[348050906,1736283035483,-3168.98,9.794e-05,2]
[348050907,1736283035492,-500.0,9.794e-05,2]
[348050908,1736283035502,-500.0,9.794e-05,2]
[348050909,1736283035511,-500.0,9.794e-05,2]
[348050910,1736283035522,-4390.05,9.794e-05,2]
[348050911,1736283035531,-500.0,9.794e-05,2]
[348050912,1736283035540,-500.0,9.794e-05,2]
[348050913,1736283035549,-500.0,9.794e-05,2]
[348050914,1736283035559,-551.41,9.794e-05,2]
[348050915,1736283035568,-500.0,9.794e-05,2]
[348050916,1736283035577,-500.0,9.794e-05,2]
[348050917,1736283035587,-692.2,9.794e-05,2]
[348050918,1736283035597,-273.55,9.794e-05,2]
[348050919,1736283035606,-500.0,9.794e-05,2]
[348050920,1736283035616,-2521.04,9.794e-05,2]
[348050921,1736283035625,-616.67,9.794e-05,2]
[348050922,1736283035635,-500.0,9.794e-05,2]
[348050923,1736283035646,-500.0,9.794e-05,2]
[348050924,1736283035655,-500.0,9.794e-05,2]
[348050925,1736283035666,-3170.88,9.794e-05,2]
[348050926,1736283035675,-500.0,9.794e-05,2]
[348050927,1736283035685,-1382.03,9.794e-05,2]
[348050928,1736283035695,-578.32,9.794e-05,2]
[348050929,1736283035704,-500.0,9.794e-05,2]
[348050930,1736283035713,-500.0,9.794e-05,2]
[348050931,1736283035723,-1377.74,9.794e-05,2]
[348050932,1736283035732,-500.0,9.794e-05,2]
[348050933,1736283035742,-1065.47,9.794e-05,2]
[348050934,1736283035751,-500.0,9.794e-05,2]
[348050935,1736283035761,-500.0,9.794e-05,2]
[348050936,1736283035771,-1924.6,9.794e-05,2]
[348050937,1736283035780,-500.0,9.794e-05,2]
[348050938,1736283035790,-222.58377241,9.794e-05,2]
[348050939,1736283035799,-3608.79,9.794e-05,2]
[348050940,1736283035809,-1724.97,9.794e-05,2]
[348050941,1736283035819,-500.0,9.794e-05,2]
[348050942,1736283035829,-500.0,9.794e-05,2]
[348050943,1736283035838,-500.0,9.794e-05,2]
[348050944,1736283035848,-1142.91,9.794e-05,2]
[348050945,1736283035870,-1419.2,9.794e-05,2]
[348050946,1736283035880,-1309.49,9.794e-05,2]
[348050947,1736283035889,-1146.7,9.794e-05,2]
[348050948,1736283035898,-500.0,9.794e-05,2]
[348050949,1736283035909,-182.924565,9.794e-05,2]
[348050950,1736283035959,-317.075435,9.794e-05,2]
[348050951,1736283035969,-500.0,9.794e-05,2]
[348050952,1736283035978,-2140.15,9.794e-05,2]
[348050953,1736283035987,-500.0,9.794e-05,2]
[348050954,1736283035996,-500.0,9.794e-05,2]
[348050955,1736283036005,-3800.11,9.794e-05,2]
[348050956,1736283036014,-2899.25,9.794e-05,2]
[348050957,1736283036024,-500.0,9.794e-05,2]
[348050958,1736283036033,-500.0,9.794e-05,2]
[348050959,1736283036043,-500.0,9.794e-05,2]
[348050960,1736283036053,-500.0,9.794e-05,2]
[348050961,1736283036062,-500.0,9.794e-05,2]
[348050962,1736283036072,-500.0,9.794e-05,2]
[348050963,1736283036082,-500.0,9.794e-05,2]
[348050964,1736283036091,-793.62,9.794e-05,2]
[348050965,1736283036100,-500.0,9.794e-05,2]
[348050966,1736283036110,-1324.86,9.794e-05,2]
[348050967,1736283036120,-1435.09,9.794e-05,2]
[348050968,1736283036130,-1519.03,9.795e-05,2]
[348050969,1736283036140,-500.0,9.795e-05,2]
[348050970,1736283036150,-5079.5,9.795e-05,2]
[348050971,1736283036159,-1716.26,9.795e-05,2]
[348050972,1736283036170,-1439.06,9.795e-05,2]
[348050973,1736283036180,-772.91,9.795e-05,2]
[348050974,1736283036190,-500.0,9.795e-05,2]
[348050975,1736283036199,-1879.17,9.795e-05,2]
[348050976,1736283036209,-1990.67,9.795e-05,2]
[348050977,1736283036227,-2507.42,9.795e-05,2]
[348050978,1736283036237,-1781.43,9.795e-05,2]
[348050979,1736283036246,-3675.29,9.795e-05,2]
[348050980,1736283036256,-2359.92,9.795e-05,2]
[348050981,1736283036266,-631.39,9.795e-05,2]
[348050982,1736283036275,-500.0,9.795e-05,2]
[348050983,1736283036285,-5223.03,9.795e-05,2]
[348050984,1736283036294,-553.76,9.795e-05,2]
[348050985,1736283036304,-500.0,9.795e-05,2]
[348050986,1736283036313,-500.0,9.795e-05,2]
[348050987,1736283036322,-4494.45,9.795e-05,2]
[348050988,1736283036331,-500.0,9.795e-05,2]
[348050989,1736283036340,-776.86,9.795e-05,2]
[348050990,1736283036350,-1220.46,9.795e-05,2]
[348050991,1736283036367,-520.51,9.795e-05,2]
[348050992,1736283036377,-535.64,9.795e-05,2]
[348050993,1736283036386,-503.55491764,9.795e-05,2]
[348050994,1736283036395,-500.0,9.795e-05,2]
[348050995,1736283036404,-234.23,9.795e-05,2]
[348050996,1736283036413,-500.0,9.795e-05,2]
[348050997,1736283036423,-500.0,9.795e-05,2]
[348050998,1736283036433,-734.64,9.795e-05,2]
[348050999,1736283036442,-500.0,9.795e-05,2]
[348051000,1736283036451,-500.0,9.795e-05,2]
[348051001,1736283036461,-500.0,9.795e-05,2]
[348051002,1736283036471,-913.49,9.795e-05,2]
[348051003,1736283036480,-500.0,9.795e-05,2]
[348051004,1736283036489,-1453.96,9.795e-05,2]
[348051005,1736283036499,-973.63,9.795e-05,2]
[348051006,1736283036508,-964.38,9.795e-05,2]
[348051007,1736283036517,-2059.73,9.795e-05,2]
[348051008,1736283036526,-1187.77,9.795e-05,2]
[348051009,1736283036535,-500.0,9.795e-05,2]
[348051010,1736283036545,-568.39,9.795e-05,2]
[348051011,1736283036555,-644.24,9.795e-05,2]
[348051012,1736283036564,-500.0,9.795e-05,2]
[348051013,1736283036573,-500.0,9.795e-05,2]
[348051014,1736283036582,-534.73,9.795e-05,2]
[348051015,1736283036592,-500.0,9.795e-05,2]
[348051016,1736283036601,-567.52,9.795e-05,2]
[348051017,1736283036614,-1039.15,9.795e-05,2]
[348051018,1736283036623,-5627.66,9.795e-05,2]
[348051019,1736283036634,-1084.22,9.795e-05,2]
[348051020,1736283036644,-500.0,9.795e-05,2]
[348051021,1736283036653,-500.0,9.795e-05,2]
[348051022,1736283036663,-500.0,9.795e-05,2]
[348051023,1736283036672,-1282.01,9.795e-05,2]
[348051024,1736283036681,-500.0,9.795e-05,2]
[348051025,1736283036690,-1120.11,9.795e-05,2]
[348051026,1736283036699,-792.55,9.795e-05,2]
[348051027,1736283036709,-500.0,9.795e-05,2]
[348051028,1736283036718,-1136.47,9.795e-05,2]
[348051029,1736283036727,-500.0,9.795e-05,2]
[348051030,1736283036737,-500.0,9.795e-05,2]
[348051031,1736283036747,-683.36,9.795e-05,2]
[348051032,1736283036758,-500.0,9.795e-05,2]
[348051033,1736283036767,-1165.7,9.795e-05,2]
[348051034,1736283036776,-500.0,9.795e-05,2]
[348051035,1736283036785,-562.3,9.795e-05,2]
[348051036,1736283036794,-690.17,9.795e-05,2]
[348051037,1736283036803,-500.0,9.795e-05,2]
[348051038,1736283036812,-539.8,9.795e-05,2]
[348051039,1736283036821,-500.0,9.795e-05,2]
[348051040,1736283036831,-500.0,9.795e-05,2]
[348051041,1736283036840,-1126.07,9.795e-05,2]
[348051042,1736283036849,-1253.13,9.795e-05,2]
[348051043,1736283036861,-585.87,9.795e-05,2]
[348051044,1736283036870,-500.0,9.795e-05,2]
[348051045,1736283036879,-500.0,9.795e-05,2]
[348051046,1736283036891,-642.3,9.795e-05,2]
[348051047,1736283036907,-500.0,9.795e-05,2]
[348051048,1736283036917,-1038.75,9.795e-05,2]
[348051049,1736283036926,-500.0,9.795e-05,2]
[348051050,1736283036935,-1586.8,9.795e-05,2]
[348051051,1736283036945,-500.0,9.795e-05,2]
[348051052,1736283036954,-500.0,9.795e-05,2]
[348051053,1736283036963,-655.71,9.795e-05,2]
[348051054,1736283036972,-500.0,9.795e-05,2]
[348051055,1736283036982,-500.0,9.795e-05,2]
[348051056,1736283036992,-521.2,9.795e-05,2]
[348051057,1736283037001,-1471.23,9.795e-05,2]
[348051058,1736283037011,-500.0,9.795e-05,2]
[348051059,1736283037020,-764.61,9.795e-05,2]
[348051060,1736283037029,-505.79,9.795e-05,2]
[348051061,1736283037039,-500.0,9.795e-05,2]
[348051062,1736283037049,-500.0,9.795e-05,2]
[348051063,1736283037059,-1439.86,9.795e-05,2]
[348051064,1736283037068,-1328.37,9.795e-05,2]
[348051065,1736283037077,-536.72,9.795e-05,2]
[348051066,1736283037086,-500.0,9.795e-05,2]
[348051067,1736283037095,-500.0,9.795e-05,2]
[348051068,1736283037107,-500.0,9.795e-05,2]
[348051069,1736283037116,-1238.92,9.795e-05,2]
[348051070,1736283037125,-500.0,9.795e-05,2]
[348051071,1736283037136,-639.51,9.795e-05,2]
[348051072,1736283037145,-500.0,9.795e-05,2]
[348051073,1736283037156,-1426.12,9.795e-05,2]
[348051074,1736283037166,-2431.19,9.795e-05,2]
[348051075,1736283037175,-500.0,9.795e-05,2]
[348051076,1736283037185,-1072.17,9.795e-05,2]
[348051077,1736283037194,-1078.67,9.795e-05,2]
[348051078,1736283037203,-500.0,9.795e-05,2]
[348051079,1736283037212,-500.0,9.795e-05,2]
[348051080,1736283037224,-500.0,9.795e-05,2]
[348051081,1736283037234,-500.0,9.795e-05,2]
[348051082,1736283037244,-1168.82,9.795e-05,2]
[348051083,1736283037253,-576.22,9.795e-05,2]
[348051084,1736283037264,-500.0,9.795e-05,2]
[348051085,1736283037273,-682.08,9.795e-05,2]
[348051086,1736283037283,-674.62,9.795e-05,2]
[348051087,1736283037292,-500.0,9.795e-05,2]
[348051088,1736283037303,-500.0,9.795e-05,2]
[348051089,1736283037313,-1035.95,9.795e-05,2]
[348051090,1736283037323,-2471.72,9.795e-05,2]
[348051091,1736283037333,-1335.72,9.795e-05,2]
[348051092,1736283037342,-1179.33,9.795e-05,2]
[348051093,1736283037351,-955.36,9.795e-05,2]
[348051094,1736283037366,-500.0,9.795e-05,2]
[348051095,1736283037375,-645.7,9.795e-05,2]
[348051096,1736283037384,-1389.22,9.795e-05,2]
[348051097,1736283037394,-500.0,9.795e-05,2]
[348051098,1736283037403,-2151.92,9.795e-05,2]
[348051099,1736283037412,-753.54,9.795e-05,2]
[348051100,1736283037421,-502.39,9.795e-05,2]
[348051101,1736283037431,-2715.6,9.795e-05,2]
[348051102,1736283037441,-895.64,9.795e-05,2]
[348051103,1736283037450,-803.26,9.795e-05,2]
[348051104,1736283037460,-7294.38,9.795e-05,2]
[348051105,1736283037470,-2823.7,9.795e-05,2]
[348051106,1736283037479,-603.84,9.795e-05,2]
[348051107,1736283037488,-1171.27,9.795e-05,2]
[348051108,1736283037497,-4112.88,9.795e-05,2]
[348051109,1736283037510,-956.01,9.795e-05,2]
[348051110,1736283037519,-4451.72,9.795e-05,2]
[348051111,1736283037528,-1371.51,9.795e-05,2]
[348051112,1736283037538,-924.53,9.795e-05,2]
[348051113,1736283037547,-1522.88,9.795e-05,2]
[348051114,1736283037556,-1751.42,9.795e-05,2]
[348051115,1736283037565,-4331.46,9.795e-05,2]
[348051116,1736283037574,-2272.93,9.795e-05,2]
[348051117,1736283037584,-1483.68,9.795e-05,2]
[348051118,1736283037593,-2385.59,9.795e-05,2]
[348051119,1736283037605,-5367.75,9.795e-05,2]
[348051120,1736283037616,-698.83,9.795e-05,2]
[348051121,1736283037627,-500.0,9.795e-05,2]
[348051122,1736283037637,-994.43,9.795e-05,2]
[348051123,1736283037646,-1024.77,9.795e-05,2]
[348051124,1736283037655,-1957.71,9.796e-05,2]
[348051125,1736283037664,-1354.56,9.796e-05,2]
[348051126,1736283037674,-1502.74,9.796e-05,2]
[348051127,1736283037683,-1078.63,9.796e-05,2]
[348051128,1736283037693,-2078.39,9.796e-05,2]
[348051129,1736283037702,-2353.44,9.796e-05,2]
[348051130,1736283037711,-2363.82,9.796e-05,2]
[348051131,1736283037721,-4690.85,9.796e-05,2]
[348051132,1736283037730,-9653.33,9.796e-05,2]
[348051133,1736283037739,-1339.49,9.796e-05,2]
[348051134,1736283037748,-1456.68,9.796e-05,2]
[348051135,1736283037758,-3595.54,9.796e-05,2]
[348051136,1736283037767,-500.0,9.796e-05,2]
[348051137,1736283037776,-1624.67,9.796e-05,2]
[348051139,1736283037786,-1707.21,9.796e-05,2]
[348051141,1736283037795,-1426.96,9.796e-05,2]
[348051143,1736283037804,-1051.97,9.796e-05,2]
[348051145,1736283037813,-500.0,9.797e-05,2]
[348051147,1736283037823,-534.74,9.797e-05,2]
[348051149,1736283037832,-500.0,9.797e-05,2]
[348051152,1736283037842,-500.0,9.797e-05,2]
[348051154,1736283037852,-500.0,9.797e-05,2]
[348051156,1736283037865,-367.47530692,9.797e-05,2]
[348051158,1736283037875,-598.97,9.797e-05,2]
[348051160,1736283037885,-500.0,9.797e-05,2]
[348051162,1736283037897,-2101.25,9.797e-05,2]
[348051163,1736283037907,-3445.72,9.797e-05,2]
[348051164,1736283037917,-1972.69,9.797e-05,2]
[348051165,1736283037926,-4190.81,9.797e-05,2]
[348051166,1736283037936,-1516.21,9.797e-05,2]
[348051167,1736283037945,-2961.15,9.797e-05,2]
[348051168,1736283037955,-1739.53,9.797e-05,2]
[348051169,1736283037964,-1829.36,9.797e-05,2]
[348051170,1736283037974,-1117.52,9.797e-05,2]
[348051171,1736283037983,-4044.89,9.797e-05,2]
[348051172,1736283037993,-797.56,9.797e-05,2]
[348051173,1736283038003,-1947.01,9.797e-05,2]
[348051174,1736283038013,-3263.38,9.798e-05,2]
[348051175,1736283038023,-500.0,9.863e-05,2]
[348051176,1736283038032,-649.99385722,9.864e-05,2]
[348051177,1736283038042,-237.03688422,9.899e-05,2]
[348051178,1736283038052,-5076.14,9.9e-05,2]
[348051179,1736283038062,-208.0,9.9e-05,2]
[348051180,1736283038071,-20518.88296522,9.9e-05,2]
[348051181,1736283038081,-90585.19089242,9.9e-05,2]
[348051217,1736283038619,-352.2600075,9.9e-05,2]
[348051218,1736283038631,-294.0,9.9e-05,2]
[348051219,1736283038642,-482.265,9.9e-05,2]
[348051226,1736283040000,-200.0,8.549e-05,2]
[348051227,1736283040010,-500.0,9.794e-05,2]
[348051228,1736283040020,-500.0,9.795e-05,2]
[348051229,1736283040029,-5533.11564634,9.9e-05,2]
[348051230,1736283040047,-8096.73463591,9.9e-05,2]
[348051231,1736283040059,-31371.82704993,9.9e-05,2]
[348051232,1736283040070,-1080.52068861,9.9e-05,2]
[348051233,1736283040081,-2399.6,9.9e-05,2]
[348051234,1736283040120,-2406.8898259,9.9e-05,2]
[348051235,1736283040132,-5207.33640273,9.9e-05,2]
[348051236,1736283040144,-4819.0952288,9.9e-05,2]
[348051237,1736283040182,-19281.57445,9.9e-05,2]
[348051238,1736283040194,-347.31267172,9.9e-05,2]
[348051239,1736283040212,-1949.14999894,9.9e-05,2]
[348051240,1736283040226,-13484.52169723,9.9e-05,2]
[348051241,1736283040239,-3873.38091078,9.9e-05,2]
[348051242,1736283040250,-15646.9189667,9.9e-05,2]
[348051252,1736283040471,-3349.1435807,9.9e-05,2]
[348051255,1736283040483,-679.02,9.9e-05,2]
[348051258,1736283040494,-914.06762677,9.9e-05,2]
[348051261,1736283040505,-1450.71022315,9.9e-05,2]
[348051265,1736283040516,-1559.81,9.9e-05,2]
[348051269,1736283040527,-675.99532,9.9e-05,2]
[348051272,1736283040542,-289.29197376,9.9e-05,2]
[348051275,1736283040553,-508.165,9.9e-05,2]
[348051315,1736283043032,-350.000082,9.794e-05,2]
[348051316,1736283043088,-149.999918,9.794e-05,2]
[348051317,1736283043098,-500.0,9.795e-05,2]
[348051318,1736283043109,-17140.60876343,9.9e-05,2]
[348051319,1736283043121,-289.4591992,9.9e-05,2]
[348051320,1736283043132,-38594.14999999,9.9e-05,2]
[348051321,1736283043307,-18128.20781992,9.9e-05,2]
[348051337,1736283046040,-500.0,9.794e-05,2]
[348051338,1736283046049,-368.8542676,9.794e-05,2]
[348051339,1736283046088,-299.1657324,9.794e-05,2]
[348051340,1736283046364,-2329.89,9.794e-05,2]
[348051343,1736283046440,-1301.09,9.795e-05,2]
[348051347,1736283046473,-5730.6542676,9.9e-05,2]
[348051349,1736283046486,-966.46,9.9e-05,2]
[348051354,1736283046522,-500.0,9.794e-05,2]
[348051356,1736283046532,-9146.26,9.9e-05,2]
[348051403,1736283047156,-966.41601008,9.9e-05,2]
[348051405,1736283047172,-1078.35727273,9.9e-05,2]
[348051407,1736283047183,-844.250635,9.9e-05,2]
[348051410,1736283047194,-565.67499798,9.9e-05,2]
[348051414,1736283047230,-3501.00025,9.9e-05,2]
[348051629,1736283741912,-1138.0,8.219e-05,2]
[348051630,1736283756913,429.5630163,5.481e-05,7]
[348051635,1736284000195,-271.81270858,8.219e-05,2]
[348051648,1736284232257,-150.0,7.823e-05,2]
[348051649,1736284232267,-148.45729142,8.219e-05,2]
[348051650,1736284232276,-150.0,8.262e-05,2]
[348051651,1736284232286,-150.0,8.44e-05,2]
[348051652,1736284232295,-250.0,8.567e-05,2]
[348051653,1736284232304,-164.12,8.653e-05,2]
[348051654,1736284232314,-250.0,8.732e-05,2]
[348051655,1736284232323,-250.0,8.759e-05,2]
[348051656,1736284232333,-900.0,8.768e-05,2]
[348051657,1736284232342,-150.0,8.779e-05,2]
[348051658,1736284232351,-595.22,8.853e-05,2]
[348051659,1736284232362,-4667.6,8.888e-05,2]
[348051660,1736284232371,-158.05280471,8.896e-05,2]
[348051661,1736284232381,-1852.42,8.903e-05,2]
[348051662,1736284232391,-1000.0,8.928e-05,2]
[348051663,1736284232400,-1057.0,8.955e-05,2]
[348051664,1736284232410,-500.0,8.986e-05,2]
[348051665,1736284232420,-150.0,9e-05,2]
[348051666,1736284232430,-150.0,9e-05,2]
[348051667,1736284232439,-150.0,9e-05,2]
[348051668,1736284232449,-212.52,9.053e-05,2]
[348051669,1736284232458,-153.52,9.071e-05,2]
[348051670,1736284232468,-150.0,9.143e-05,2]
[348051671,1736284232478,-238.55296523,9.179e-05,2]
[348051672,1736284232487,-183.69,9.331e-05,2]
[348051673,1736284232498,-150.0,9.341e-05,2]
[348051674,1736284232507,-150.0,9.389e-05,2]
[348051675,1736284232517,-437.76,9.395e-05,2]
[348051676,1736284232526,-150.0,9.412e-05,2]
[348051677,1736284232535,-150.0,9.413e-05,2]
[348051678,1736284232547,-771.88,9.425e-05,2]
[348051679,1736284232556,-437.68,9.425e-05,2]
[348051680,1736284232568,-771.88,9.425e-05,2]
[348051681,1736284232577,-874.5,9.425e-05,2]
[348051682,1736284232586,-771.49,9.425e-05,2]
[348051683,1736284232596,-1057.0,9.427e-05,2]
[348051684,1736284232605,-1500.0,9.48e-05,2]
[348051685,1736284232615,-193.863,9.5e-05,2]
[348051686,1736284232624,-150.0,9.565e-05,2]
[348051687,1736284232635,-150.0,9.566e-05,2]
[348051688,1736284232645,-150.0,9.595e-05,2]
[348051689,1736284232656,-150.0,9.603e-05,2]
[348051690,1736284232665,-150.0,9.624e-05,2]
[348051691,1736284232674,-150.0,9.689e-05,2]
[348051692,1736284232685,-908.97,9.693e-05,2]
[348051693,1736284232695,-5000.0,9.693e-05,2]
[348051694,1736284232704,-2500.0,9.693e-05,2]
[348051696,1736284232713,-5408.6033,9.694e-05,2]
[348051698,1736284232722,-500.0,9.694e-05,2]
[348051699,1736284232732,-1000.0,9.694e-05,2]
[348051701,1736284232741,-17954.3091,9.695e-05,2]
[348051703,1736284232755,-4207.0,9.696e-05,2]
[348051704,1736284232764,-440.1488,9.753e-05,2]
[348051705,1736284232775,-500.0,9.792e-05,2]
[348051706,1736284232785,-2600.81,9.792e-05,2]
[348051707,1736284232794,-1810.44,9.792e-05,2]
[348051708,1736284232803,-4386.68,9.792e-05,2]
[348051709,1736284232812,-2527.5,9.792e-05,2]
[348051710,1736284232821,-1474.25,9.792e-05,2]
[348051711,1736284232830,-500.0,9.792e-05,2]
[348051712,1736284232840,-1424.5,9.792e-05,2]
[348051713,1736284232849,-3672.31,9.792e-05,2]
[348051714,1736284232858,-1421.3,9.792e-05,2]
[348051716,1736284232867,-500.0,9.792e-05,2]
[348051718,1736284232876,-500.0,9.792e-05,2]
[348051720,1736284232885,-1479.46,9.792e-05,2]
[348051722,1736284232894,-500.0,9.792e-05,2]
[348051724,1736284232903,-2100.52,9.792e-05,2]
[348051725,1736284232912,-500.0,9.792e-05,2]
[348051727,1736284232921,-1332.16,9.792e-05,2]
[348051729,1736284232930,-744.36,9.792e-05,2]
[348051731,1736284232939,-500.0,9.792e-05,2]
[348051733,1736284232948,-1757.27,9.792e-05,2]
[348051735,1736284232957,-1261.21,9.792e-05,2]
[348051737,1736284232966,-835.47,9.792e-05,2]
[348051739,1736284232975,-2422.92,9.792e-05,2]
[348051740,1736284232984,-500.0,9.793e-05,2]
[348051742,1736284232993,-500.0,9.793e-05,2]
[348051744,1736284233003,-500.0,9.793e-05,2]
[348051746,1736284233012,-500.0,9.793e-05,2]
[348051747,1736284233021,-500.0,9.793e-05,2]
[348051748,1736284233029,-500.0,9.793e-05,2]
[348051749,1736284233039,-500.0,9.793e-05,2]
[348051750,1736284233048,-143.60273864,9.793e-05,2]
[348051751,1736284233118,-356.39726136,9.793e-05,2]
[348051752,1736284233127,-500.0,9.793e-05,2]
[348051753,1736284233136,-500.0,9.793e-05,2]
[348051754,1736284233145,-500.0,9.793e-05,2]
[348051755,1736284233154,-500.0,9.793e-05,2]
[348051756,1736284233164,-297.45993122,9.793e-05,2]
[348051758,1736284233173,-500.0,9.793e-05,2]
[348051759,1736284233183,-500.0,9.793e-05,2]
[348051761,1736284233193,-500.0,9.793e-05,2]
[348051763,1736284233205,-500.0,9.793e-05,2]
[348051764,1736284233214,-500.0,9.793e-05,2]
[348051766,1736284233223,-500.0,9.793e-05,2]
[348051768,1736284233233,-500.0,9.793e-05,2]
[348051770,1736284233242,-500.0,9.793e-05,2]
[348051772,1736284233254,-500.0,9.793e-05,2]
[348051774,1736284233263,-500.0,9.793e-05,2]
[348051776,1736284233273,-500.0,9.793e-05,2]
[348051778,1736284233283,-500.0,9.793e-05,2]
[348051781,1736284233293,-500.0,9.793e-05,2]
[348051782,1736284233302,-327.88970446,9.793e-05,2]
[348051785,1736284233312,-500.0,9.793e-05,2]
[348051786,1736284233322,-500.0,9.793e-05,2]
[348051788,1736284233331,-500.0,9.793e-05,2]
[348051790,1736284233341,-500.0,9.793e-05,2]
[348051792,1736284233351,-509.97,9.793e-05,2]
[348051795,1736284233360,-766.53,9.793e-05,2]
[348051797,1736284233371,-500.0,9.793e-05,2]
[348051798,1736284233380,-500.0,9.793e-05,2]
[348051801,1736284233390,-500.0,9.793e-05,2]
[348051802,1736284233399,-500.0,9.793e-05,2]
[348051805,1736284233409,-500.0,9.793e-05,2]
[348051806,1736284233419,-500.0,9.793e-05,2]
[348051808,1736284233429,-500.0,9.793e-05,2]
[348051810,1736284233439,-500.0,9.793e-05,2]
[348051812,1736284233447,-500.0,9.793e-05,2]
[348051814,1736284233457,-500.0,9.793e-05,2]
[348051816,1736284233466,-977.56,9.793e-05,2]
[348051818,1736284233476,-500.0,9.793e-05,2]
[348051820,1736284233485,-554.48,9.793e-05,2]
[348051822,1736284233495,-500.0,9.793e-05,2]
[348051824,1736284233505,-500.0,9.793e-05,2]
[348051826,1736284233515,-500.0,9.793e-05,2]
[348051828,1736284233525,-500.0,9.793e-05,2]
[348051830,1736284233534,-1435.05,9.793e-05,2]
[348051832,1736284233544,-500.0,9.793e-05,2]
[348051834,1736284233556,-500.0,9.793e-05,2]
[348051836,1736284233566,-500.0,9.793e-05,2]
[348051838,1736284233575,-614.53,9.793e-05,2]
[348051840,1736284233586,-986.69,9.793e-05,2]
[348051842,1736284233597,-500.0,9.793e-05,2]